Cogmind - Beta 16 @@@ ROGUE MODE // 2026.02.04 @ 16:25:25 Player: Auron Result: Destroyed by S-10 Pest with Light Assault Rifle Performance ------------- Evolutions (0) 0 Regions Visited (1) 200 Robots Destroyed (3) 15 Value Destroyed (30) 30 Prototype IDs (2) 40 Alien Tech Used (0) 0 Bonus (0) 0 TOTAL SCORE: 285 Bonus ------- None Cogmind --------- Core Integrity 0/250 Matter 163/300 Energy 100/100 System Corruption 0% Temperature Cool (0) Movement Core (50) Location -10/Materials Parts ------- > --- POWER (1) -------- (None) > --- PROPULSION (2) --- (None) > --- UTILITY (2) ------ Structural Scanner Propulsion Shielding > --- WEAPON (2) ------- (None) > --- INVENTORY (5) ---- Flight Unit Flight Unit Peak State ------------ > --- POWER ------------ Light Ion Engine > --- PROPULSION ------- Compact Wheel Compact Wheel > --- UTILITY ---------- Propulsion Shielding > --- WEAPON ----------- Light Assault Rifle Light Assault Rifle > --- INVENTORY -------- (None) [Rating: 6] Favorites ----------- Power Light Ion Engine Engine Light Ion Engine Propulsion Compact Wheel Wheel Compact Wheel Utility Propulsion Shielding Device Structural Scanner Protection Propulsion Shielding Weapon Light Assault Rifle Ballistic Gun Light Assault Rifle Build | -11 -10 ------- Run | Yrd Mat Slots Evolved . | . . Power . | . . Propulsion . | . . Utility . | . . Weapon . | . . Parts Attached 7 | 5 2 Power 1 | 1 . Engine 1 | 1 . Core . | . . Reactor . | . . Propulsion 2 | 2 . Treads . | . . Leg . | . . Wheel 2 | 2 . Hover . | . . Flight . | . . Utility 2 | . 2 Device 1 | . 1 Storage . | . . Processor . | . . Hackware . | . . Protection 1 | . 1 Artifact . | . . Weapon 2 | 2 . Energy Gun . | . . Energy Cannon . | . . Ballistic Gun 2 | 2 . Ballistic Cannon . | . . Launcher . | . . Special Weapon . | . . Impact Weapon . | . . Slashing Weapon . | . . Piercing Weapon . | . . Special Melee Weapon . | . . Unidentified Prototypes . | . . Parts Lost 5 | . 5 Power 1 | . 1 Propulsion 2 | . 2 Utility . | . . Weapon 2 | . 2 Highest Loss Streak 3 | . 3 To Critical Strikes . | . . Average Backups . | . . Power . | . . Propulsion . | . . Utility . | . . Weapon . | . . Tool/Special . | . . Unused Backups 2 | . 2 Power . | . . Propulsion 2 | . 2 Utility . | . . Weapon . | . . Tool/Special . | . . Average Slot Usage (%) 61 | . 61 Engine 4 | . 4 Wheel 22 | . 22 Device 2 | . 2 Protection 12 | . 12 Ballistic Gun 19 | . 19 Peak Build Rating 6 | 5 6 Average Rating 4 | 3 4 On Entrance 2 | . 5 Avg Prop Armor Cover (%) . | . . Naked Turns . | . . Heaviest Build 6 | 5 6 Greatest Support 32 | 32 32 Greatest Overweight (x) . | . . Average Overweight (x) . | . . Largest Inventory Capacity 5 | 5 5 Average Capacity 5 | 5 5 Most Carried 3 | 3 3 Average Carried . | . . Final Capacity 5 | 5 5 Final Carried 2 | . 2 Class Distribution -------------------- 100% | Mutant Dominant Class ---------------- Mutant | -10/Materials Resources | -11 -10 ----------- Run | Yrd Mat Matter Collected 134 | 116 18 Remotely . | . . Salvage Created 41 | . 41 Parts 3 | . 3 Haulers Intercepted . | . . Recyclers Shooed . | . . Parts Field Recycled . | . . Retrieved Matter . | . . Parts Self-Destructed . | . . Prevented . | . . Parts Restored . | . . Kills | -11 -10 ------- Run | Yrd Mat Combat Hostiles Destroyed 3 | . 3 Guns 3 | . 3 Classes Destroyed 1 | . 1 Swarmer 3 | . 3 Best Kill Streak 3 | . 3 Combat Bots Only 3 | . 3 Max Kills in Single Turn 1 | . 1 Gunslinging . | . . Exploded . | . . Melee . | . . Uniques/NPCs Destroyed . | . . Combat | -11 -10 -------- Run | Yrd Mat Hostile Shots Fired 82 | . 82 Missed 23 | . 23 Hits 59 | . 59 Projectile 59 | . 59 Damage Taken 571 | . 571 Core 259 | . 259 Absorbed by Shields . | . . Redirected to Shielding 25 | . 25 Core Remaining (%) 100 | 100 . Volleys Fired 18 | . 18 Largest 2 | . 2 Hottest 40 | . 40 Shots Fired 28 | . 28 Gun 28 | . 28 Cannon . | . . Launcher . | . . Special . | . . Kinetic 28 | . 28 Thermal . | . . Explosive . | . . Electromagnetic . | . . Robot Hit Streak 4 | . 4 Robot Miss Streak 4 | . 4 Penetration Max . | . . Secondary Targets 2 | . 2 Max Gunslinging Chain 1 | . 1 Shots Hit Robots 13 | . 13 Core Hits 6 | . 6 Critical Kills . | . . Critical Parts Destroyed 1 | . 1 Critical Strikes 1 | . 1 Destroy 1 | . 1 Melee Attacks . | . . Impact . | . . Slashing . | . . Piercing . | . . Sneak Attacks . | . . Combat Hostiles . | . . Follow-up Attacks . | . . Damage Inflicted 108 | . 108 Guns 105 | . 105 Cannons . | . . Explosions . | . . Melee . | . . Ramming 3 | . 3 Kinetic 105 | . 105 Thermal . | . . Explosive . | . . Electromagnetic . | . . Impact . | . . Slashing . | . . Piercing . | . . Highest Corruption . | . . Average Corruption . | . . Corruption Purged . | . . Corruption Blocked . | . . Overload Shots . | . . Overflow Damage . | . . Projectiles . | . . Explosions . | . . Melee . | . . Knockbacks . | . . Impact . | . . Kinetic . | . . Secondary . | . . Self-Inflicted Damage 1 | . 1 Shots . | . . Rammed 1 | . 1 Targets Rammed 1 | . 1 Kicked . | . . Crushed . | . . Highest Temperature 4 | . 4 Average Temperature 4 | . 4 Received Heat Transfer 126 | . 126 Siege Activations . | . . Martial Activations . | . . Shielding Activations . | . . Robots Disrupted . | . . Combat Hostiles . | . . Robots Corrupted . | . . Combat Hostiles . | . . Parts Fried . | . . Impact Corruptions . | . . Robots Melted . | . . Combat Hostiles . | . . Parts Melted . | . . Heat Transferred . | . . Parts Sabotaged . | . . Parts Stolen . | . . Parts Stripped . | . . Power Chain Reactions . | . . Alert | -11 -10 ------- Run | Yrd Mat Maximum Alert Level . | . . Low Security (%) 100 | 100 100 Level 1 . | . . Level 2 . | . . Level 3 . | . . Level 4 . | . . Level 5 . | . . High Security . | . . Max Security . | . . Peak Influence 65 | . 65 Initial . | . . Average 22 | . 27 Influence Increases 130 | . 130 Destroy 0b10 Robot/C 60 | . 60 Destroy Leader 10 | . 10 Lose Combat Pursuer 60 | . 60 Influence Decreases 110 | . 110 Time Decay 70 | . 70 Lost Part 40 | . 40 Squads Dispatched 1 | . 1 Investigation 1 | . 1 Extermination . | . . Reinforcement . | . . Assault . | . . Garrison . | . . Intercept . | . . Searches Triggered . | . . Construction Impeded . | . . Haulers Reinforced . | . . Active Scanning Responses . | . . Cargo Convoy Interrupts . | . . Stealth | -11 -10 --------- Run | Yrd Mat Distress Signals 2 | . 2 Communications Jammed . | . . Distress Signals . | . . Times Spotted 15 | . 15 Peak Tracking Total 8 | . 8 Tactical Retreats 3 | . 3 Traps | -11 -10 ------- Run | Yrd Mat Traps Triggered . | . . Indirectly . | . . Trap Hack Attempts . | . . Triggered . | . . Disarmed . | . . Reprogrammed . | . . Reused . | . . Traps Extracted . | . . Installed . | . . Triggered . | . . Machines | -11 -10 ---------- Run | Yrd Mat Machines Disabled . | . . Max in Single Turn . | . . Machines Repaired . | . . Machines Dismantled . | . . Machines Sabotaged . | . . Overloaded Fab Kills . | . . Hacking | -11 -10 --------- Run | Yrd Mat Machines Accessed 2 | . 2 Terminals 2 | . 2 Fabricators . | . . Repair Stations . | . . Recycling Units . | . . Scanalyzers . | . . Garrison Access . | . . Total Hacks 6 | . 6 Successful 4 | . 4 Failed 2 | . 2 Catastrophic . | . . Database Lockouts . | . . Manual . | . . Terminals 6 | . 6 Fabricators . | . . Repair Stations . | . . Recycling Units . | . . Scanalyzers . | . . Garrison Access . | . . Terminal Hacks 4 | . 4 Record 2 | . 2 Prototype ID Bank 1 | . 1 Alert Level 1 | . 1 Fabricator Hacks . | . . Repair Station Hacks . | . . Recycling Unit Hacks . | . . Scanalyzer . | . . Garrison Access Hacks . | . . Unauthorized Hacks . | . . Terminals . | . . Fabricators . | . . Repair Stations . | . . Recycling Units . | . . Scanalyzers . | . . Garrison Access . | . . Data Cores Recovered . | . . Used . | . . Hacking Detections 2 | . 2 Full Trace Events 2 | . 2 Feedback Events . | . . Feedback Blocked . | . . Robot Schematics Acquired . | . . Robots Built . | . . Authchips . | . . Time . | . . Total Robot Build Rating . | . . Part Schematics Acquired . | . . Parts Built . | . . Authchips . | . . Time . | . . Total Part Build Rating . | . . Part Studies Acquired . | . . Parts Repaired . | . . Time . | . . Parts Recycled . | . . Recycled Matter . | . . Retrieved Matter . | . . Retrieved Components . | . . Parts Scanalyzed . | . . Part Schematics Acquired . | . . Parts Damaged . | . . Bothacking | -11 -10 ------------ Run | Yrd Mat Used RIF Installer . | . . Robots Hacked . | . . Non-combat . | . . Combat . | . . Robot Hacks Applied . | . . Relay Couplers Released . | . . Fabnet Peak Effective % . | . . Robots Rewired . | . . Allies Hacked . | . . Hacks Repelled . | . . Allies | -11 -10 -------- Run | Yrd Mat Total Allies . | . . Largest Group . | . . Highest-Rated Group . | . . Highest-Rated Ally . | . . Total Orders . | . . Ally Attacks . | . . Total Damage . | . . Kills . | . . Allies Corrupted . | . . Allies Melted . | . . Intel | -11 -10 ------- Run | Yrd Mat Active Infowar (turns) 46 | . 46 Structural 46 | . 46 Robot Analysis Total . | . . Derelict Logs Recovered . | . . Drone Launches . | . . Drone Recoveries . | . . Exploration | -11 -10 ------------- Run | Yrd Mat Turns Passed 225 | 40 185 Spaces Moved 206 | 35 171 Core 82 | 8 74 Treads . | . . Legs . | . . Wheels 124 | 27 97 Hover . | . . Flight . | . . Fastest Speed 50 | 50 50 Average Speed 80 | 88 78 Slowest Speed 100 | 100 100 Overloaded Moves . | . . Propulsion Burnouts . | . . Robots Hopped . | . . Potential Cave-ins . | . . Cave-ins Triggered . | . . Exploration Rate (%) 18 | 3 34 Regions Visited 1 Branch Regions . Pre-discovered Areas . | . . Known Exits Taken . | . . Unknown Exits Taken 1 | 1 . Scrap Searched . | . . Spaces Dug . | . . Terrain Destroyed . | . . Melee . | . . Projectile . | . . AOE . | . . Terrain Rammed . | . . Walls Destroyed . | . . Machines Disabled . | . . Actions | -11 -10 --------- Run | Yrd Mat Total 243 | 44 199 Wait 3 | . 3 Move 205 | 34 171 Hop . | . . Pick Up 9 | 5 4 Fast Attach . | . . Attach 7 | 5 2 Detach . | . . Swap . | . . Drop . | . . Fire 18 | . 18 Melee . | . . Ram 1 | . 1 Kick . | . . Crush . | . . Escape Stasis . | . . Rewire . | . . Trap . | . . Miscellaneous . | . . Route ------- -11/Scrapyard -10/Materials History --------- Turn | Location | Event 5 | -11/Scrapyard | Discovered new exit (range 15) 41 | -11/Scrapyard | Entered Materials 188 | -10/Materials | Core integrity fell below 50% 205 | -10/Materials | Core integrity fell below 20% 218 | -10/Materials | Lost 3 parts (2n1w) 226 | -10/Materials | Destroyed by S-10 Pest with Light Assault Rifle Last Messages --------------- 00198_ K-01 Serf collects debris. 00209_ Connecting with Terminal... >>Query(Fabricator) Self-contained construction unit capable of building almost any component or robot for which detailed schematics are provided. Initiating a new build process requires an [Authchip], but an internal generator provides all the energy required for fabrication, and matter input is drawn from the local network as per fabricator specification, while some schematics may call for preassembled subcomponents. Advanced fabricators can complete complex tasks more quickly. >>Prototypes Downloading prototype IDs... Imp. Flight Unit Imp. Assault Rifle 00209_ ALERT: Suspicious activity at Terminal M002. Dispatching Investigation squad. Map ----- +----------------------------------------------------+ | ???????????????????????????### # ### ## | | ??????????????????????????? #######+## ## | | ??????????????????????????? ## | | ?????????????????????????? "## | | ??????????????????????????? T## | | ??????????????????????????? ## ## "## | | ??????????????????????????? ## ## " ## | | ????????????????????????????##! ??## "" "# | | ????????????????????????????###!?? ### "" T# | | ????????????????????????????####??#### """ "# | | ?????????????????????????????###??##"" "" ## | | ??????????????????????????????????##"" """ ## | | ??????????????????????????????????##"T """ ## | | ??????????????????????????????????##"" """ "" | | ??????????????????????????????????##"" " Y" | | ??????????????????????????????????#### "" | | ????????????????????????????????###### ## | | ???????????????????????????? ######### | | ???????????????????????????? ##### | | ???????????????????????????? + | | ???????????????????????????? ##### | | ???????????????????????????? ##### | | ????????????????????????????????## | | ????????????????? ################ | | ????????????????? ################ ### | | ????????????????? + t @ s ### | | ????????????????? #################+#### | | ????????????????? ############ T # ## | | ????????????????????????????## # ## | | ????????????????????????????## """"""" # ## | | ????????????????????????????## """"""" # ## | | ????????????????????????????## """"""" # ##?? | | ????????????????????????????## """"""" # ??????? | | ????????????????????????????## """"""" # ????????? | | ????????????????????????????## # ????????? | | ????????????????????????????#####"T"####+????????? | | ????????????????????????????############ ????????? | | ???????????????????????????????#######???????????? | | ?????????????????????????????????????????????????? | | ?????????????????????????????????????????????????? | | ?????????????????????????????????????????????????? | | ?????????????????????????????????????????????????? | | | | | | | | | | | | | | | | | +----------------------------------------------------+ Best States ------------- Heat Dissipation 25 Energy Generation 10 Energy Capacity 125 Matter Stores 206 Matter Capacity 300 Sight Range 16 Terrain Scan Density 10 Propulsion Shielding 33 Evasion (%) 50 Item Schematics ----------------- None Robot Schematics ------------------ None Fabricated ------------ Nothing Repaired ---------- Nothing Studied --------- None Alien Tech Used ----------------- None Achievements -------------- None Challenges ------------ None Game ------ Seed SmartbombLinkedReconstructor Manual? 0 Play Time 00:05:25 Cumulative 5.4 hours Start 2026.02.04 @ 16:22:11 End 2026.02.04 @ 16:25:25 Sessions 1 Manual Loads 0 Difficulty Rogue Special Mode None Game No. 11 Rogue 11 Adventurer 0 Explorer 0 Win Type - Total 0 Types 0/0/0/0/0/0/0/0/0/0 Lore% 6 Gallery% 9 Achievement% 8 Wizard Run 0 Options --------- Layout 1 ASCII 0 Keyboard 0 Movement Mouse Keybinds 0 Fullscreen 1 Font 24/Smallcaps Map View 50x35 Zoom Use 0% Tactical HUD 1 Map Filters NONE Filters NONE Steam 1 RUN: f31bf69a-d5e1-4e74-9415-22d1569b9139